bitfinex/quotes_BTCUSD_20220205
["timestamp","ask_amount","ask_price","bid_price","bid_amount"]
[1644096208318,0.3961659,41746.0,41745.0,0.29349596]
[1644096208520,0.3311659,41746.0,41745.0,0.29349596]
[1644096209250,0.07254806,41753.0,41745.0,0.29349596]
[1644096210447,0.3475924,41748.0,41747.0,0.00067731]
[1644096211444,0.07254806,41753.0,41745.0,0.24417329]
[1644096212443,0.07254806,41753.0,41745.0,0.24349596]
[1644096212847,0.36861968,41751.0,41747.0,0.00067731]
[1644096213690,0.1224,41755.0,41745.0,0.24349596]
[1644096213893,0.1224,41755.0,41747.0,0.00067718]
[1644096214091,0.1224,41755.0,41749.0,0.05]
[1644096214290,0.1224,41755.0,41748.0,0.334999]
[1644096214291,0.000677,41758.0,41750.0,0.5671312]
[1644096214496,0.000677,41758.0,41750.0,0.2321322]
[1644096214892,0.05,41755.0,41754.0,0.20263275]
[1644096215093,0.05,41757.0,41754.0,0.20263275]
[1644096215893,0.29,41757.0,41754.0,0.20263275]
[1644096216295,0.24,41757.0,41755.0,0.24650852]
[1644096220353,0.24,41757.0,41754.0,0.20263275]
[1644096220595,0.24,41757.0,41754.0,0.25263275]
[1644096223398,0.24,41757.0,41754.0,0.20263275]
[1644096223899,0.24,41757.0,41753.0,0.00067714]
[1644096224546,0.24,41757.0,41751.0,0.26348992]
[1644096224742,0.24,41757.0,41753.0,0.00067714]
[1644096224944,0.24,41757.0,41755.0,0.26140245]
[1644096228695,0.239,41757.0,41755.0,0.26140245]
[1644096230101,0.239,41757.0,41756.0,0.24650307]
[1644096232942,0.239,41757.0,41755.0,0.26140245]
[1644096233342,0.239,41757.0,41753.0,0.00067715]
[1644096233343,0.56545689,41757.0,41753.0,0.00067715]
[1644096233842,0.61545689,41757.0,41753.0,0.00067715]
[1644096234048,0.56545689,41757.0,41753.0,0.00067715]
[1644096234242,0.56545689,41757.0,41747.0,0.15]
[1644096234444,0.56545689,41757.0,41753.0,0.00067714]
[1644096234844,0.61545689,41757.0,41753.0,0.00067714]
[1644096235246,0.56545689,41757.0,41753.0,0.00067714]
[1644096235494,0.05,41754.0,41753.0,0.00067714]
[1644096236496,0.56545689,41757.0,41752.0,0.22083251]
[1644096236701,0.05,41756.0,41752.0,0.22083251]
[1644096237896,0.05,41756.0,41752.0,0.22150965]
[1644096238897,0.05,41756.0,41752.0,0.22083251]
[1644096239099,0.05,41756.0,41752.0,0.22150965]
[1644096239541,0.239,41757.0,41753.0,0.25827868]
[1644096239943,0.239,41757.0,41752.0,0.22150965]
[1644096240142,0.239,41757.0,41753.0,0.24980474]
[1644096240345,0.239,41757.0,41753.0,0.25048188]
[1644096240544,0.239,41757.0,41754.0,0.048]
[1644096241347,0.001,41763.0,41757.0,0.3094911]
[1644096241547,0.05067705,41758.0,41753.0,0.00067714]
[1644096241747,0.05,41754.0,41753.0,0.00067714]
[1644096242542,0.05,41754.0,41750.0,0.24145539]
[1644096242744,0.05,41754.0,41751.0,0.00067715]
[1644096243808,0.05,41754.0,41750.0,0.24145539]
[1644096244005,0.05,41754.0,41750.0,0.24213255]
[1644096245105,0.05,41754.0,41750.0,0.00067716]
[1644096245307,0.59756074,41756.0,41750.0,0.00067716]
[1644096245506,0.05,41751.0,41750.0,0.00067716]
[1644096246308,0.05,41751.0,41748.0,0.00067718]
[1644096247348,0.05,41751.0,41745.0,0.27849766]
[1644096247648,0.05,41754.0,41747.0,0.00067719]
[1644096248649,0.05,41754.0,41743.0,0.00028765]
[1644096248851,0.05,41754.0,41748.0,0.00066781]
[1644096249451,0.51632367,41756.0,41748.0,0.00066781]
[1644096249754,0.51632367,41756.0,41747.0,0.23245968]
[1644096249755,0.05,41750.0,41747.0,0.23245968]
[1644096249949,0.51632367,41756.0,41747.0,0.23245968]
[1644096250152,0.05,41753.0,41747.0,0.23245968]
[1644096250350,0.31019709,41756.0,41748.0,0.334999]
[1644096250600,0.05,41754.0,41747.0,0.33245968]
[1644096250800,0.36019709,41756.0,41748.0,0.334999]
[1644096251102,0.36019709,41756.0,41747.0,0.33245968]
[1644096251301,0.36019709,41756.0,41748.0,0.24887581]
[1644096251704,0.36019709,41756.0,41748.0,0.29887581]
[1644096252202,0.36019709,41756.0,41748.0,0.05]
[1644096252407,0.36019709,41756.0,41750.0,0.00067716]
[1644096253104,0.8510462,41756.0,41750.0,0.00067716]
[1644096253304,0.8510462,41756.0,41747.0,0.33245968]
[1644096253506,0.05,41751.0,41747.0,0.28245968]
[1644096253907,0.05,41755.0,41748.0,0.24645738]
[1644096254105,0.05,41755.0,41747.0,0.28245968]
[1644096254751,0.05,41755.0,41749.0,0.00067749]
[1644096255849,0.05,41755.0,41747.0,0.28245968]
[1644096256049,0.05,41755.0,41750.0,0.00065475]
[1644096257050,0.05,41755.0,41747.0,0.28245968]
[1644096257251,0.05,41755.0,41750.0,0.0006544]
[1644096258196,0.05,41755.0,41747.0,0.33245968]
[1644096258399,0.05,41755.0,41750.0,0.0006544]
[1644096259398,0.05,41755.0,41747.0,0.33245968]
[1644096259697,0.05,41755.0,41750.0,0.00067713]
[1644096260698,0.05,41755.0,41747.0,0.43245968]
[1644096260896,0.05,41755.0,41750.0,0.00067793]
[1644096261744,0.05,41755.0,41747.0,0.43245968]
[1644096261971,0.05,41755.0,41750.0,0.00067793]
[1644096262845,0.05,41755.0,41750.0,0.00056084]
[1644096263045,0.05,41755.0,41747.0,0.43245968]
[1644096263643,0.05,41755.0,41748.0,0.2457258]
[1644096263844,0.05,41755.0,41748.0,0.29539456]
[1644096264045,0.05,41755.0,41748.0,0.05]
[1644096264246,0.05,41755.0,41747.0,0.43245968]
[1644096264445,0.05,41755.0,41749.0,0.0004047]
[1644096266595,0.05,41755.0,41747.0,0.43245968]
[1644096266796,0.05,41755.0,41749.0,0.00067719]
[1644096267799,0.05,41755.0,41747.0,0.43245968]
[1644096267997,0.05,41755.0,41749.0,0.00064679]
[1644096268996,0.05,41755.0,41747.0,0.43274733]
[1644096269263,0.05,41755.0,41749.0,0.00064679]
[1644096269866,0.05,41751.0,41749.0,0.00064679]
[1644096270264,0.05,41751.0,41747.0,0.23274733]
[1644096270568,0.05,41751.0,41748.0,0.0006468]
[1644096270763,0.05,41751.0,41748.0,0.24689912]
[1644096271063,0.05,41751.0,41748.0,0.0006468]
[1644096271364,0.05,41751.0,41747.0,0.23274733]
[1644096271563,0.05,41751.0,41747.0,0.23309769]
[1644096271764,0.49705788,41756.0,41747.0,0.23309769]
[1644096271964,0.05,41755.0,41747.0,0.23309769]
[1644096272666,0.05,41755.0,41747.0,0.23245968]
[1644096273000,0.05,41755.0,41749.0,0.00064004]
[1644096273602,0.05,41753.0,41749.0,0.00064004]
[1644096273801,0.05,41753.0,41748.0,0.00028765]
[1644096274001,0.05,41753.0,41749.0,0.00064005]
[1644096274902,0.05,41753.0,41748.0,0.00028765]
[1644096275101,0.05,41753.0,41749.0,0.00064086]
[1644096276102,0.49705788,41756.0,41748.0,0.00028765]
[1644096276302,0.05,41752.0,41749.0,0.00064131]
[1644096277344,0.05,41752.0,41748.0,0.00028765]
[1644096277546,0.32546458,41751.0,41748.0,0.00064132]
[1644096277747,0.32546458,41751.0,41748.0,0.00092897]
[1644096278545,0.05,41752.0,41748.0,0.00028765]
[1644096279244,0.05,41752.0,41747.0,0.23310091]
[1644096279444,0.05,41752.0,41748.0,0.24810186]
[1644096279845,0.05,41752.0,41748.0,0.24702094]
[1644096280045,0.05,41752.0,41748.0,0.00092879]
[1644096281001,0.05,41752.0,41748.0,0.00028765]
[1644096281197,0.05,41752.0,41747.0,0.23245968]
[1644096281396,0.05,41752.0,41748.0,0.00064114]
[1644096281596,0.05,41752.0,41748.0,0.00092879]
[1644096281897,0.05,41755.0,41748.0,0.00092879]
[1644096282097,0.05,41755.0,41748.0,0.00028765]
[1644096282302,0.05,41755.0,41747.0,0.33245968]
[1644096282496,0.05,41755.0,41749.0,0.00064114]
[1644096283503,0.05,41755.0,41748.0,0.00028765]
[1644096283800,0.05,41755.0,41749.0,0.00064116]
[1644096283998,0.23,41756.0,41749.0,0.00064116]
[1644096284452,0.23,41756.0,41749.0,0.00054381]
[1644096284453,0.28,41756.0,41749.0,0.00054381]
[1644096284653,0.28,41756.0,41748.0,0.00028765]
[1644096284852,0.28,41756.0,41747.0,0.28245968]
[1644096285252,0.28,41756.0,41748.0,0.24649205]
[1644096285452,0.28,41756.0,41748.0,0.24684356]
[1644096285654,0.28,41756.0,41748.0,0.00028765]
[1644096285853,0.28,41756.0,41747.0,0.28245968]
[1644096286057,0.28,41756.0,41747.0,0.23245968]
[1644096287255,0.05,41750.0,41747.0,0.23245968]
[1644096287455,0.05,41753.0,41748.0,0.334999]
[1644096287654,0.05,41753.0,41748.0,0.00028765]
[1644096287855,0.05,41753.0,41747.0,0.23245968]
[1644096289598,0.05,41753.0,41747.0,0.23318106]
[1644096289800,0.3950895,41751.0,41747.0,0.23318106]
[1644096290801,0.3950895,41751.0,41747.0,0.23390244]
[1644096291102,0.3950895,41751.0,41747.0,0.23318106]
[1644096291756,0.3950895,41751.0,41747.0,0.23245968]
[1644096291951,0.3950895,41751.0,41747.0,0.23313953]
[1644096293055,0.3949895,41751.0,41747.0,0.23245968]
[1644096293252,0.3949895,41751.0,41747.0,0.23313953]
[1644096294252,0.3949895,41751.0,41747.0,0.23245968]
[1644096294452,0.3949895,41751.0,41747.0,0.23313953]
[1644096295254,0.05,41750.0,41747.0,0.23313953]
[1644096295523,0.05,41750.0,41747.0,0.23245968]
[1644096295721,0.05,41750.0,41747.0,0.23318106]
[1644096296122,0.26152047,41755.0,41747.0,0.23318106]
[1644096296323,0.05,41755.0,41747.0,0.23318106]
[1644096296722,0.05,41755.0,41747.0,0.23245968]
[1644096296924,0.05,41755.0,41747.0,0.23318106]
[1644096297523,0.39174029,41755.0,41747.0,0.23318106]
[1644096297723,0.05,41752.0,41747.0,0.23318106]
[1644096297925,0.39174029,41755.0,41747.0,0.23245968]
[1644096298122,0.54399992,41755.0,41747.0,0.23318106]
[1644096298324,0.39174029,41755.0,41747.0,0.23318106]
[1644096298525,0.54399992,41755.0,41747.0,0.23318106]
[1644096298726,0.39174029,41755.0,41747.0,0.23318106]
[1644096298926,0.54399992,41755.0,41747.0,0.23318106]
[1644096299131,0.54399992,41755.0,41747.0,0.23245968]
[1644096299351,0.39174029,41755.0,41747.0,0.23318106]
[1644096300350,0.39174029,41755.0,41747.0,0.28318106]
[1644096300551,0.34174029,41755.0,41747.0,0.28318106]
[1644096300750,0.34174029,41755.0,41747.0,0.23318106]
[1644096300951,0.05,41750.0,41747.0,0.23318106]
[1644096301352,0.05,41750.0,41747.0,0.23245968]
[1644096301949,0.34174029,41755.0,41747.0,0.23274733]
[1644096302351,0.05,41751.0,41747.0,0.23274733]
[1644096302750,0.05,41751.0,41747.0,0.23346871]
[1644096302999,0.05,41751.0,41747.0,0.23318106]
[1644096303903,0.05,41751.0,41747.0,0.23245968]
[1644096304101,0.05,41751.0,41747.0,0.23318106]
[1644096305102,0.05,41751.0,41747.0,0.23245968]
[1644096305304,0.05,41751.0,41747.0,0.23318106]
[1644096305706,0.049,41753.0,41747.0,0.23318106]
[1644096305904,0.049,41753.0,41747.0,0.23418106]
[1644096306306,0.049,41753.0,41747.0,0.23345968]
[1644096306505,0.049,41753.0,41747.0,0.23418106]
[1644096307351,0.049,41753.0,41747.0,0.23345968]
[1644096307753,0.049,41753.0,41747.0,0.23418106]
[1644096308152,0.049,41753.0,41751.0,0.001]
[1644096308555,0.43125963,41756.0,41751.0,0.001]
[1644096308861,0.43125963,41756.0,41755.0,0.001]
[1644096308862,0.23072123,41756.0,41755.0,0.001]
[1644096309255,0.23072123,41756.0,41755.0,0.049]
[1644096309854,0.23,41756.0,41755.0,0.049]
[1644096311103,0.23,41756.0,41755.0,0.32667109]
[1644096311304,0.23,41756.0,41755.0,0.47667109]
[1644096311504,0.23,41756.0,41755.0,0.52667109]
[1644096314008,0.23,41756.0,41748.0,0.00028765]
[1644096314258,0.23,41756.0,41747.0,0.23318109]
[1644096314259,0.049,41752.0,41747.0,0.23346874]
[1644096314452,0.049,41752.0,41747.0,0.23318109]
[1644096314658,0.32406028,41749.0,41748.0,0.334999]
[1644096314851,0.32406028,41749.0,41747.0,0.00072137]
[1644096315854,0.32406028,41749.0,41747.0,0.001]
[1644096315855,0.58984699,41749.0,41747.0,0.001]
[1644096316057,0.32406028,41749.0,41747.0,0.001]
[1644096317563,0.049,41753.0,41746.0,0.00072139]
[1644096318204,0.049,41753.0,41744.0,0.00028765]
[1644096318205,0.049,41751.0,41744.0,0.00028765]
[1644096318406,0.26928001,41750.0,41747.0,0.00072137]
[1644096318605,0.049,41751.0,41747.0,0.00072137]
[1644096318606,0.2870696,41748.0,41747.0,0.00072137]
[1644096319407,0.2870696,41748.0,41744.0,0.00028765]
[1644096319605,0.2870696,41748.0,41745.0,0.00072139]
[1644096319811,0.1161,41755.0,41745.0,0.00072139]
[1644096320006,0.1161,41755.0,41748.0,0.001]
[1644096321006,0.29012186,41751.0,41748.0,0.001]
[1644096321208,0.29012186,41751.0,41748.0,0.00128765]
[1644096322055,0.29012186,41751.0,41748.0,0.001]
[1644096322358,0.29012186,41751.0,41748.0,0.00128765]
[1644096322753,0.29012186,41751.0,41748.0,0.00028765]
[1644096323053,0.29012186,41751.0,41747.0,0.001]
[1644096323253,0.29012186,41751.0,41747.0,0.00172137]
[1644096323853,0.29012186,41751.0,41748.0,0.001]
[1644096324053,0.29012186,41751.0,41748.0,0.00128765]
[1644096324253,0.29012186,41751.0,41748.0,0.00028765]
[1644096324456,0.29012186,41751.0,41748.0,0.001]
[1644096324654,0.29012186,41751.0,41748.0,0.00028765]
[1644096324858,0.29012186,41751.0,41747.0,0.00072137]
[1644096325055,0.29012186,41751.0,41747.0,0.00100902]
[1644096325356,0.19012186,41751.0,41747.0,0.00100902]
[1644096325607,0.19012186,41751.0,41747.0,0.00028765]
[1644096325807,0.19012186,41751.0,41747.0,0.00072138]
[1644096326009,0.19012186,41751.0,41747.0,0.00100903]
[1644096326607,0.19012186,41751.0,41747.0,0.00028765]
[1644096326808,0.19012186,41751.0,41747.0,0.00072138]
[1644096327008,0.19012186,41751.0,41747.0,0.00100903]
[1644096327810,0.19012186,41751.0,41747.0,0.00028765]
[1644096328009,0.19012186,41751.0,41746.0,0.001]
[1644096328211,0.19012186,41751.0,41747.0,0.00072138]
[1644096328412,0.19012186,41751.0,41747.0,0.00100903]
[1644096329656,0.00168813,41750.0,41747.0,0.00100903]
[1644096330253,0.00168813,41750.0,41747.0,0.00028765]
[1644096330454,0.00168813,41750.0,41746.0,0.00172138]
[1644096331557,0.00168813,41750.0,41746.0,0.001]
[1644096331758,0.00168813,41750.0,41746.0,0.00172139]
[1644096332664,0.00168813,41750.0,41746.0,0.001]
[1644096332861,0.00168813,41750.0,41746.0,0.00172139]
[1644096333906,0.00168813,41750.0,41746.0,0.001]
[1644096334106,0.00168813,41750.0,41744.0,0.00028765]
[1644096334107,0.00168813,41750.0,41747.0,0.001]
[1644096334708,0.00168813,41750.0,41747.0,0.00128765]
[1644096335313,0.00168813,41750.0,41746.0,0.00072138]
[1644096335711,0.00168813,41750.0,41747.0,0.001]
[1644096335908,0.00168813,41750.0,41747.0,0.00128765]
[1644096336111,0.00168813,41750.0,41747.0,0.00028765]
[1644096336309,0.00168813,41750.0,41744.0,0.00028765]
[1644096336510,0.00168813,41750.0,41746.0,0.00072138]
[1644096337156,0.00168813,41750.0,41747.0,0.001]
[1644096337354,0.00168813,41750.0,41747.0,0.00028765]
[1644096337553,0.00168813,41750.0,41744.0,0.00028765]
[1644096337754,0.00168813,41750.0,41747.0,0.001]
[1644096338152,0.00168813,41750.0,41747.0,0.00128765]
[1644096338955,0.00168813,41750.0,41747.0,0.001]
[1644096339153,0.00168813,41750.0,41747.0,0.00028765]
[1644096339352,0.00168813,41750.0,41747.0,0.001]
[1644096339555,0.48318128,41755.0,41747.0,0.00128765]
[1644096340155,0.48318128,41755.0,41747.0,0.00169704]
[1644096341006,0.48318128,41755.0,41747.0,0.001]
[1644096341205,0.63459143,41755.0,41747.0,0.00172086]
[1644096341406,0.48318128,41755.0,41747.0,0.00172086]
[1644096342307,0.48318128,41755.0,41747.0,0.001]
[1644096342509,0.48318128,41755.0,41747.0,0.00172086]
[1644096343508,0.48318128,41755.0,41747.0,0.001]
[1644096343714,0.48318128,41755.0,41747.0,0.00172086]
[1644096344670,0.63459143,41755.0,41747.0,0.001]
[1644096344875,0.63459143,41755.0,41747.0,0.00172138]
[1644096345072,0.48318128,41755.0,41747.0,0.00172138]
[1644096345469,0.48318128,41755.0,41747.0,0.00165175]
[1644096345872,0.48318128,41755.0,41747.0,0.00093037]
[1644096346071,0.63459143,41755.0,41747.0,0.00165175]
[1644096347169,0.63459143,41755.0,41747.0,0.00093037]
[1644096347370,0.04906963,41749.0,41747.0,0.00165175]
[1644096347570,0.63459143,41755.0,41747.0,0.05072138]
[1644096348005,0.48318128,41755.0,41747.0,0.05072138]
[1644096348209,0.63459143,41755.0,41747.0,0.05]
[1644096348406,0.48318128,41755.0,41747.0,0.05072138]
[1644096348605,0.63459143,41755.0,41747.0,0.05072138]
[1644096348805,0.48318128,41755.0,41747.0,0.05072138]
[1644096349007,0.15351816,41755.0,41748.0,0.24224995]
[1644096349208,0.15351816,41755.0,41754.0,0.05]
[1644096349209,0.00210801,41755.0,41754.0,0.05]
[1644096349407,0.00210801,41755.0,41754.0,0.098]
[1644096349807,0.00210801,41755.0,41754.0,0.148]
[1644096350711,0.00210801,41755.0,41754.0,0.098]
[1644096351307,0.00210801,41755.0,41754.0,0.35763702]
[1644096354257,0.00210801,41755.0,41754.0,0.30763702]
[1644096354657,0.00210801,41755.0,41754.0,0.35763702]
[1644096357711,0.00210801,41755.0,41754.0,0.30763702]
[1644096358112,0.00210801,41755.0,41754.0,0.35700867]
[1644096358713,0.00210801,41755.0,41754.0,0.30700867]
[1644096358912,0.00210801,41755.0,41754.0,0.25963702]
[1644096359554,0.00210801,41755.0,41754.0,0.30963702]
[1644096360454,0.00210801,41755.0,41754.0,0.25963702]
[1644096360654,0.00210801,41755.0,41754.0,0.35963702]
[1644096362256,0.00210801,41755.0,41754.0,0.25963702]
[1644096366111,0.00210801,41755.0,41754.0,0.30963702]
[1644096366307,0.00210801,41755.0,41754.0,0.40963702]
[1644096369059,0.00210801,41755.0,41753.0,0.05]
[1644096369259,0.00210801,41755.0,41751.0,0.05]
[1644096369759,0.00210801,41755.0,41749.0,0.00028765]
[1644096369958,0.00210801,41755.0,41750.0,0.05]
[1644096370159,0.00210801,41755.0,41751.0,0.2525041]
[1644096370359,0.00210801,41755.0,41751.0,0.3525041]
[1644096370609,0.00210801,41755.0,41751.0,0.4525041]
[1644096371009,0.00210801,41755.0,41751.0,0.2]
[1644096371709,0.00210801,41755.0,41751.0,0.35343758]
[1644096371909,0.00153943,41755.0,41751.0,0.25343758]
[1644096372115,0.00153943,41755.0,41748.0,0.25585617]
[1644096372311,0.00153943,41755.0,41750.0,0.05]
[1644096372710,0.00153943,41755.0,41749.0,0.00028765]
[1644096372914,0.00153943,41755.0,41748.0,0.25585617]
[1644096373311,0.00153943,41755.0,41748.0,0.35585617]
[1644096373715,0.00153943,41755.0,41748.0,0.45556852]
[1644096373913,0.00153943,41755.0,41748.0,0.45585617]
[1644096374962,0.00153943,41755.0,41748.0,0.45556852]
[1644096375162,0.00153943,41755.0,41748.0,0.45585617]
[1644096375362,0.00153943,41755.0,41752.0,0.05]
[1644096375563,0.00153943,41755.0,41749.0,0.00028765]
[1644096375765,0.00153943,41755.0,41748.0,0.50585617]
[1644096375962,0.00153943,41755.0,41749.0,0.00028765]
[1644096376166,0.00153943,41755.0,41748.0,0.50556852]
[1644096376467,0.00153943,41755.0,41748.0,0.50585617]
[1644096377163,0.00153943,41755.0,41753.0,0.05]
[1644096377463,0.23067586,41756.0,41755.0,0.00307886]
[1644096377663,0.23067586,41756.0,41749.0,0.70028765]
[1644096377864,0.23067586,41756.0,41753.0,0.05]
[1644096378110,0.23067586,41756.0,41754.0,0.25373908]
[1644096378311,0.23,41756.0,41755.0,0.05]
[1644096378510,0.23,41756.0,41755.0,0.29680668]
[1644096378909,0.23,41756.0,41755.0,0.24680668]
[1644096379115,0.06551085,41761.0,41755.0,0.24735924]
[1644096379310,0.3664,41763.0,41755.0,0.24735924]
[1644096379510,0.3664,41763.0,41751.0,0.1]
[1644096379511,0.001,41763.0,41752.0,0.28992876]
[1644096379709,0.001,41763.0,41752.0,0.33992876]
[1644096379909,0.001,41763.0,41752.0,0.43992876]
[1644096380310,0.001,41763.0,41756.0,0.23343803]
[1644096382264,0.00067583,41761.0,41756.0,0.23343803]
[1644096383262,0.001,41763.0,41756.0,0.23343803]
[1644096383461,0.00067584,41761.0,41756.0,0.23343803]
[1644096384363,0.001,41763.0,41756.0,0.23343803]
[1644096384562,0.00067582,41761.0,41756.0,0.23343803]
[1644096385609,0.28481803,41764.0,41756.0,0.23343803]
[1644096385810,0.00067582,41761.0,41756.0,0.23343803]
[1644096386817,0.28481803,41764.0,41756.0,0.23343803]
[1644096387113,0.00067582,41761.0,41756.0,0.23343803]
[1644096389115,0.28481803,41764.0,41756.0,0.23343803]
[1644096389370,0.00067582,41761.0,41756.0,0.23343803]
[1644096390365,0.28481803,41764.0,41756.0,0.23343803]
[1644096390566,0.00067582,41761.0,41756.0,0.23343803]
[1644096391567,0.28481803,41764.0,41756.0,0.23343803]
[1644096391767,0.00067582,41761.0,41756.0,0.23343803]
[1644096392768,0.28481803,41764.0,41756.0,0.23343803]
[1644096393013,0.00067582,41761.0,41756.0,0.23343803]
[1644096394018,0.28481803,41764.0,41756.0,0.23343803]
[1644096394219,0.00067582,41761.0,41756.0,0.23343803]
[1644096395119,0.28481803,41764.0,41756.0,0.23343803]
[1644096395318,0.00067582,41761.0,41756.0,0.23343803]
[1644096397561,0.28481803,41764.0,41756.0,0.23343803]
[1644096397864,0.00067582,41761.0,41756.0,0.23343803]
[1644096400063,0.28481803,41764.0,41756.0,0.23343803]
[1644096400263,0.00067582,41761.0,41756.0,0.23343803]
[1644096401119,0.28481803,41764.0,41756.0,0.23343803]
[1644096401518,0.00067582,41761.0,41756.0,0.23343803]
[1644096402320,0.28481803,41764.0,41756.0,0.23343803]
[1644096405067,0.0006759,41762.0,41756.0,0.23343803]
[1644096406063,0.28481803,41764.0,41756.0,0.23343803]
[1644096406064,0.29649404,41763.0,41756.0,0.23343803]
[1644096406264,0.29649404,41763.0,41753.0,0.00069417]
[1644096406265,0.00069404,41761.0,41753.0,0.00069417]
[1644096406463,0.34129584,41756.0,41753.0,0.00069417]
[1644096407065,0.34129584,41756.0,41752.0,0.05]
[1644096407264,0.34129584,41756.0,41752.0,0.27918424]
[1644096408314,0.34129584,41756.0,41752.0,0.27849009]
[1644096408515,0.34129584,41756.0,41752.0,0.27918425]
[1644096409521,0.34129584,41756.0,41752.0,0.27849009]
[1644096409817,0.34129584,41756.0,41752.0,0.27916489]
[1644096410220,0.00067469,41759.0,41752.0,0.27905183]
[1644096410418,0.00067469,41759.0,41753.0,0.334999]
[1644096410818,0.30044131,41764.0,41752.0,0.27837703]
[1644096411017,0.0006747,41759.0,41753.0,0.00067479]
[1644096411218,0.28672983,41759.0,41753.0,0.00067479]
[1644096411863,0.28605513,41759.0,41752.0,0.22849009]
[1644096413263,0.28605513,41759.0,41752.0,0.27849009]
[1644096413464,0.00067653,41758.0,41752.0,0.27849009]
[1644096414265,0.28605513,41759.0,41752.0,0.27849009]
[1644096414664,0.00067654,41757.0,41752.0,0.27849009]
[1644096414865,0.28573167,41759.0,41752.0,0.27849009]
[1644096417016,0.28573167,41759.0,41753.0,0.00040376]
[1644096417916,0.28573167,41759.0,41753.0,0.05]
[1644096418121,0.28640757,41759.0,41753.0,0.050676]
[1644096418716,0.28640757,41759.0,41754.0,0.05]
[1644096419118,0.28573167,41759.0,41754.0,0.05]
[1644096419365,0.28640757,41759.0,41754.0,0.05]
[1644096419763,0.28140757,41759.0,41754.0,0.05]
[1644096420063,0.28140757,41759.0,41753.0,0.050676]
[1644096420264,0.28073167,41759.0,41752.0,0.42849009]
[1644096420463,0.28073167,41759.0,41753.0,0.00067602]
[1644096420668,0.28140759,41759.0,41753.0,0.00067602]
[1644096421264,0.28140759,41759.0,41754.0,0.05]
[1644096421666,0.28073167,41759.0,41752.0,0.42849009]
[1644096421865,0.2814076,41759.0,41753.0,0.00067603]
[1644096422665,0.28073167,41759.0,41752.0,0.22849009]
[1644096422867,0.28073167,41759.0,41753.0,0.00067602]
[1644096423111,0.28140759,41759.0,41753.0,0.00067602]
[1644096423315,0.28140759,41759.0,41753.0,0.05067602]
[1644096423913,0.28073167,41759.0,41753.0,0.05]
[1644096424111,0.28140759,41759.0,41753.0,0.00067602]
[1644096425114,0.28073167,41759.0,41752.0,0.27849009]
[1644096425317,0.28140759,41759.0,41753.0,0.00067602]
[1644096426019,0.28140759,41759.0,41753.0,0.05067602]
[1644096426216,0.28140759,41759.0,41753.0,0.00067602]
[1644096426515,0.28073167,41759.0,41753.0,0.00067602]
[1644096426769,0.28140759,41759.0,41753.0,0.00067602]
[1644096427572,0.28073167,41759.0,41752.0,0.42849009]
[1644096427773,0.28145298,41759.0,41753.0,0.00072141]
[1644096428780,0.28073167,41759.0,41752.0,0.42849009]
[1644096428974,0.28145298,41759.0,41753.0,0.00072141]
[1644096429773,0.28145298,41759.0,41754.0,0.05]
[1644096429974,0.28073167,41759.0,41754.0,0.05]
[1644096430174,0.28145298,41759.0,41754.0,0.05]
[1644096430374,0.28145298,41759.0,41753.0,0.00072141]
[1644096430828,0.28145298,41759.0,41754.0,0.05]
[1644096431234,0.28073167,41759.0,41754.0,0.05]
[1644096431431,0.28145298,41759.0,41754.0,0.05]
[1644096431628,0.28145298,41759.0,41753.0,0.00072141]
[1644096432432,0.28073167,41759.0,41752.0,0.42849009]
[1644096432629,0.28145298,41759.0,41753.0,0.00072141]
[1644096433630,0.28073167,41759.0,41752.0,0.42849009]
[1644096433833,0.28145298,41759.0,41753.0,0.00072141]
[1644096434867,0.28073167,41759.0,41752.0,0.42849009]
[1644096435066,0.28145298,41759.0,41753.0,0.00072141]
[1644096435965,0.28073167,41759.0,41752.0,0.42849009]
[1644096436166,0.28073167,41759.0,41753.0,0.00072141]
[1644096436371,0.28145298,41759.0,41753.0,0.00072141]
[1644096437166,0.28073167,41759.0,41752.0,0.42849009]
[1644096437368,0.28145298,41759.0,41753.0,0.00072141]
[1644096438418,0.28073167,41759.0,41752.0,0.42849009]
[1644096438619,0.28143959,41759.0,41753.0,0.00070802]
[1644096439521,0.28143959,41759.0,41752.0,0.42849009]
[1644096439522,0.28073167,41759.0,41752.0,0.42849009]
[1644096439719,0.28073167,41759.0,41753.0,0.00070802]
[1644096439920,0.28143959,41759.0,41753.0,0.00070802]
[1644096440920,0.28073167,41759.0,41753.0,0.00070802]
[1644096441120,0.28143959,41759.0,41753.0,0.00070802]
[1644096441964,0.28073167,41759.0,41752.0,0.42849009]
[1644096442164,0.28140543,41759.0,41753.0,0.00067386]
[1644096443064,0.28140543,41759.0,41753.0,0.00058742]
[1644096443263,0.28073167,41759.0,41752.0,0.42849009]
[1644096443464,0.28140543,41759.0,41753.0,0.00067386]
[1644096444369,0.28073167,41759.0,41752.0,0.42849009]
[1644096444564,0.28100393,41759.0,41752.0,0.42849009]
[1644096445720,0.28073167,41759.0,41752.0,0.42849009]
[1644096445921,0.28140774,41759.0,41753.0,0.00067617]
[1644096446720,0.28140774,41759.0,41752.0,0.42849009]
[1644096446926,0.28073167,41759.0,41753.0,0.00067618]
[1644096447124,0.28140775,41759.0,41753.0,0.00067618]
[1644096448022,0.28073167,41759.0,41752.0,0.42849009]
[1644096448223,0.28140775,41759.0,41753.0,0.00067618]
[1644096449276,0.28073167,41759.0,41752.0,0.22849009]
[1644096449474,0.28140759,41759.0,41753.0,0.00067602]
[1644096450472,0.28073167,41759.0,41752.0,0.22849009]
[1644096450672,0.28140759,41759.0,41753.0,0.00067602]
[1644096451674,0.28073167,41759.0,41752.0,0.22849009]
[1644096451875,0.28140759,41759.0,41753.0,0.00067602]
[1644096452879,0.28073167,41759.0,41752.0,0.22849009]
[1644096453116,0.28073167,41759.0,41753.0,0.00067603]
[1644096453117,0.2814076,41759.0,41753.0,0.00067603]
[1644096453920,0.28073167,41759.0,41752.0,0.22849009]
[1644096454322,0.2814076,41759.0,41753.0,0.00067603]
[1644096454920,0.2814076,41759.0,41752.0,0.22677502]
[1644096455322,0.28073167,41759.0,41752.0,0.22677502]
[1644096456321,0.28073167,41759.0,41752.0,0.27677502]
[1644096456524,0.28073167,41759.0,41752.0,0.37677502]
[1644096456770,0.28073167,41759.0,41752.0,0.47677502]
[1644096457169,0.28073167,41759.0,41752.0,0.42677502]